[Event "Titled Tuesday Blitz December 13 Late 2022"]
[White "Van Dael, Siem"]
[Black "Kuzmicz, Krystian"]
[WhiteFideId "1049771"]
[BlackFideId "1119125"]
[WhiteElo "2336"]
[BlackElo "2379"]
[Result "1/2-1/2"]
[Round "02"]
[TimeControl "180+1"]
[Date "2022.12.14"]
[WhiteClock "0:00:12"]
[BlackClock "0:00:18"]

1. d4 {[%clk 0:03:00]}  g6 {[%clk 0:02:59]} 2. e4 {[%clk 0:03:00]}  Bg7 {[%clk 0:03:00]} 3. Nc3 {[%clk 0:03:01]}  c6 {[%clk 0:03:00]} 4. Nf3 {[%clk 0:02:59]}  d5 {[%clk 0:03:00]} 5. h3 {[%clk 0:03:00]}  Nf6 {[%clk 0:03:00]} 6. e5 {[%clk 0:02:58]}  Ne4 {[%clk 0:02:59]} 7. Bd3 {[%clk 0:02:58]}  Nxc3 {[%clk 0:02:58]} 8. bxc3 {[%clk 0:02:59]}  c5 {[%clk 0:02:59]} 9. dxc5 {[%clk 0:02:53]}  Nd7 {[%clk 0:02:53]} 10. Qe2 {[%clk 0:02:42]}  Nxc5 {[%clk 0:02:52]} 11. O-O {[%clk 0:02:42]}  O-O {[%clk 0:02:52]} 12. Re1 {[%clk 0:02:37]}  b6 {[%clk 0:02:38]} 13. Bg5 {[%clk 0:02:24]}  Bb7 {[%clk 0:02:32]} 14. Qe3 {[%clk 0:02:21]}  Rc8 {[%clk 0:02:30]} 15. Rac1 {[%clk 0:02:03]}  Ne4 {[%clk 0:02:26]} 16. Bxe4 {[%clk 0:01:40]}  dxe4 {[%clk 0:02:26]} 17. Nd2 {[%clk 0:01:39]}  Bxe5 {[%clk 0:02:21]} 18. Nxe4 {[%clk 0:01:38]}  Re8 {[%clk 0:02:17]} 19. Rcd1 {[%clk 0:01:19]}  Qc7 {[%clk 0:02:17]} 20. Rd3 {[%clk 0:01:19]}  Bg7 {[%clk 0:02:10]} 21. Bh6 {[%clk 0:01:17]}  Bh8 {[%clk 0:02:09]} 22. Ng5 {[%clk 0:01:12]}  Qc5 {[%clk 0:02:02]} 23. Qxc5 {[%clk 0:00:46]}  bxc5 {[%clk 0:02:01]} 24. Rd7 {[%clk 0:00:47]}  Bxc3 {[%clk 0:01:48]} 25. Re3 {[%clk 0:00:38]}  Bc6 {[%clk 0:01:42]} 26. Rxa7 {[%clk 0:00:38]}  Bf6 {[%clk 0:01:39]} 27. Ne4 {[%clk 0:00:35]}  Bd4 {[%clk 0:01:39]} 28. Re1 {[%clk 0:00:31]}  Ra8 {[%clk 0:01:38]} 29. Rc7 {[%clk 0:00:29]}  Bd5 {[%clk 0:01:32]} 30. c3 {[%clk 0:00:26]}  Bh8 {[%clk 0:01:24]} 31. Nxc5 {[%clk 0:00:20]}  Bxa2 {[%clk 0:01:17]} 32. Rexe7 {[%clk 0:00:14]}  Rxe7 {[%clk 0:01:16]} 33. Rxe7 {[%clk 0:00:15]}  Bxc3 {[%clk 0:01:16]} 34. Ne4 {[%clk 0:00:14]}  Bh8 {[%clk 0:01:06]} 35. Bg5 {[%clk 0:00:12]}  Be6 {[%clk 0:00:58]} 36. Bf6 {[%clk 0:00:10]}  Bxf6 {[%clk 0:00:50]} 37. Nxf6+ {[%clk 0:00:11]}  Kg7 {[%clk 0:00:50]} 38. Ne4 {[%clk 0:00:10]}  Ra1+ {[%clk 0:00:49]} 39. Kh2 {[%clk 0:00:10]}  Ra2 {[%clk 0:00:49]} 40. f3 {[%clk 0:00:07]}  Bd5 {[%clk 0:00:47]} 41. Kg3 {[%clk 0:00:07]}  Ra3 {[%clk 0:00:42]} 42. Re5 {[%clk 0:00:07]}  Ba2 {[%clk 0:00:40]} 43. h4 {[%clk 0:00:07]}  h6 {[%clk 0:00:40]} 44. Rc5 {[%clk 0:00:06]}  Bb1 {[%clk 0:00:39]} 45. Nd6 {[%clk 0:00:07]}  Ra6 {[%clk 0:00:37]} 46. Nc4 {[%clk 0:00:06]}  Ba2 {[%clk 0:00:37]} 47. Ne5 {[%clk 0:00:06]}  Be6 {[%clk 0:00:37]} 48. Nd3 {[%clk 0:00:06]}  Kf6 {[%clk 0:00:35]} 49. Nf4 {[%clk 0:00:06]}  Bf5 {[%clk 0:00:35]} 50. Rb5 {[%clk 0:00:06]}  Kg7 {[%clk 0:00:34]} 51. Rb2 {[%clk 0:00:06]}  g5 {[%clk 0:00:34]} 52. hxg5 {[%clk 0:00:06]}  hxg5 {[%clk 0:00:34]} 53. Nh3 {[%clk 0:00:06]}  Kg6 {[%clk 0:00:34]} 54. Nf2 {[%clk 0:00:07]}  Be6 {[%clk 0:00:34]} 55. Ne4 {[%clk 0:00:07]}  Rc6 {[%clk 0:00:31]} 56. Rd2 {[%clk 0:00:07]}  f5 {[%clk 0:00:29]} 57. Nd6 {[%clk 0:00:06]}  Kf6 {[%clk 0:00:26]} 58. Nb5 {[%clk 0:00:06]}  f4+ {[%clk 0:00:21]} 59. Kf2 {[%clk 0:00:06]}  Ra6 {[%clk 0:00:21]} 60. Nc7 {[%clk 0:00:06]}  Rc6 {[%clk 0:00:21]} 61. Nxe6 {[%clk 0:00:06]}  Rxe6 {[%clk 0:00:21]} 62. Ra2 {[%clk 0:00:06]}  Kg6 {[%clk 0:00:21]} 63. Rd2 {[%clk 0:00:06]}  Kh5 {[%clk 0:00:20]} 64. g3 {[%clk 0:00:06]}  Ra6 {[%clk 0:00:20]} 65. Kg2 {[%clk 0:00:05]}  Ra3 {[%clk 0:00:18]} 66. Rc2 {[%clk 0:00:04]}  Kh6 {[%clk 0:00:18]} 67. Rc6+ {[%clk 0:00:04]}  Kg7 {[%clk 0:00:18]} 68. Rc2 {[%clk 0:00:04]}  Kf6 {[%clk 0:00:18]} 69. Rc6+ {[%clk 0:00:05]}  Ke5 {[%clk 0:00:18]} 70. Rc5+ {[%clk 0:00:05]}  Kf6 {[%clk 0:00:18]} 71. Rc2 {[%clk 0:00:05]}  Rb3 {[%clk 0:00:18]} 72. Ra2 {[%clk 0:00:05]}  Kf5 {[%clk 0:00:18]} 73. Ra5+ {[%clk 0:00:05]}  Kg6 {[%clk 0:00:18]} 74. Ra2 {[%clk 0:00:05]}  Rb5 {[%clk 0:00:18]} 75. gxf4 {[%clk 0:00:04]}  gxf4 {[%clk 0:00:19]} 76. Kh3 {[%clk 0:00:05]}  Kg5 {[%clk 0:00:19]} 77. Ra8 {[%clk 0:00:04]}  Rb3 {[%clk 0:00:18]} 78. Ra5+ {[%clk 0:00:05]}  Kg6 {[%clk 0:00:18]} 79. Kg4 {[%clk 0:00:05]}  Rb4 {[%clk 0:00:18]} 80. Rc5 {[%clk 0:00:05]}  Ra4 {[%clk 0:00:18]} 81. Rf5 {[%clk 0:00:05]}  Rb4 {[%clk 0:00:18]} 82. Rg5+ {[%clk 0:00:05]}  Kf6 {[%clk 0:00:18]} 83. Rh5 {[%clk 0:00:06]}  Kg6 {[%clk 0:00:18]} 84. Rh1 {[%clk 0:00:06]}  Ra4 {[%clk 0:00:18]} 85. Rb1 {[%clk 0:00:06]}  Kf6 {[%clk 0:00:18]} 86. Rb6+ {[%clk 0:00:06]}  Ke5 {[%clk 0:00:18]} 87. Rb8 {[%clk 0:00:05]}  Kf6 {[%clk 0:00:16]} 88. Rf8+ {[%clk 0:00:06]}  Kg6 {[%clk 0:00:16]} 89. Rb8 {[%clk 0:00:04]}  Kf6 {[%clk 0:00:15]} 90. Rb6+ {[%clk 0:00:04]}  Ke5 {[%clk 0:00:15]} 91. Kg5 {[%clk 0:00:05]}  Ra3 {[%clk 0:00:13]} 92. Rb5+ {[%clk 0:00:05]}  Ke6 {[%clk 0:00:13]} 93. Kxf4 {[%clk 0:00:05]}  Kf6 {[%clk 0:00:14]} 94. Rb6+ {[%clk 0:00:06]}  Kf7 {[%clk 0:00:14]} 95. Kg4 {[%clk 0:00:06]}  Ra5 {[%clk 0:00:14]} 96. f4 {[%clk 0:00:07]}  Ra4 {[%clk 0:00:14]} 97. Kg5 {[%clk 0:00:06]}  Ra5+ {[%clk 0:00:14]} 98. f5 {[%clk 0:00:07]}  Ra7 {[%clk 0:00:15]} 99. Rh6 {[%clk 0:00:07]}  Kg7 {[%clk 0:00:14]} 100. Rg6+ {[%clk 0:00:07]}  Kf7 {[%clk 0:00:14]} 101. Rc6 {[%clk 0:00:08]}  Kg7 {[%clk 0:00:12]} 102. Rh6 {[%clk 0:00:07]}  Rb7 {[%clk 0:00:12]} 103. Ra6 {[%clk 0:00:07]}  Kf7 {[%clk 0:00:12]} 104. Rh6 {[%clk 0:00:07]}  Kg7 {[%clk 0:00:12]} 105. f6+ {[%clk 0:00:07]}  Kg8 {[%clk 0:00:12]} 106. Rg6+ {[%clk 0:00:06]}  Kf8 {[%clk 0:00:11]} 107. Rh6 {[%clk 0:00:07]}  Rb1 {[%clk 0:00:11]} 108. Rh8+ {[%clk 0:00:07]}  Kf7 {[%clk 0:00:11]} 109. Rh7+ {[%clk 0:00:07]}  Kf8 {[%clk 0:00:12]} 110. Ra7 {[%clk 0:00:06]}  Rg1+ {[%clk 0:00:11]} 111. Kf5 {[%clk 0:00:07]}  Rf1+ {[%clk 0:00:12]} 112. Ke5 {[%clk 0:00:07]}  Re1+ {[%clk 0:00:12]} 113. Kd5 {[%clk 0:00:08]}  Rd1+ {[%clk 0:00:12]} 114. Ke6 {[%clk 0:00:08]}  Re1+ {[%clk 0:00:12]} 115. Kf5 {[%clk 0:00:08]}  Rf1+ {[%clk 0:00:12]} 116. Ke4 {[%clk 0:00:08]}  Rxf6 {[%clk 0:00:12]} 117. Ke5 {[%clk 0:00:09]}  Rf7 {[%clk 0:00:12]} 118. Ra6 {[%clk 0:00:09]}  Kg7 {[%clk 0:00:12]} 119. Ra1 {[%clk 0:00:08]}  Re7+ {[%clk 0:00:12]} 120. Kf5 {[%clk 0:00:09]}  Rf7+ {[%clk 0:00:13]} 121. Kg5 {[%clk 0:00:09]}  Rf6 {[%clk 0:00:13]} 122. Ra7+ {[%clk 0:00:09]}  Rf7 {[%clk 0:00:14]} 123. Ra6 {[%clk 0:00:10]}  Re7 {[%clk 0:00:13]} 124. Rg6+ {[%clk 0:00:08]}  Kf7 {[%clk 0:00:13]} 125. Rh6 {[%clk 0:00:09]}  Ke8 {[%clk 0:00:14]} 126. Kf6 {[%clk 0:00:09]}  Rf7+ {[%clk 0:00:14]} 127. Ke6 {[%clk 0:00:09]}  Re7+ {[%clk 0:00:15]} 128. Kd6 {[%clk 0:00:10]}  Rd7+ {[%clk 0:00:15]} 129. Ke5 {[%clk 0:00:10]}  Re7+ {[%clk 0:00:16]} 130. Kd5 {[%clk 0:00:11]}  Rd7+ {[%clk 0:00:16]} 131. Kc6 {[%clk 0:00:12]}  Re7 {[%clk 0:00:16]} 132. Rf6 {[%clk 0:00:12]}  Rf7 {[%clk 0:00:16]} 133. Rg6 {[%clk 0:00:12]}  Kf8 {[%clk 0:00:16]} 134. Kd6 {[%clk 0:00:12]}  Ra7 {[%clk 0:00:16]} 135. Rg1 {[%clk 0:00:11]}  Ra6+ {[%clk 0:00:16]} 136. Ke5 {[%clk 0:00:11]}  Ra5+ {[%clk 0:00:17]} 137. Ke6 {[%clk 0:00:12]}  Ra6+ {[%clk 0:00:17]} 138. Kf5 {[%clk 0:00:12]}  Ra5+ {[%clk 0:00:18]} 139. Kf6 {[%clk 0:00:12]} 1/2-1/2


[Site "https://www.chess.com"]

[Event "Titled Tuesday Blitz December 13 Late 2022"]
[White "Yoo, Christopher Woojin"]
[Black "Milosevic, Milos"]
[WhiteFideId "30909694"]
[BlackFideId "964875"]
[WhiteElo "2463"]
[BlackElo "2314"]
[Result "1-0"]
[Round "02"]
[TimeControl "180+1"]
[Date "2022.12.13"]
[WhiteClock "0:00:07"]
[BlackClock "0:00:12"]

1. e4 {[%clk 0:03:00]}  e5 {[%clk 0:02:56]} 2. Nf3 {[%clk 0:03:00]}  Nc6 {[%clk 0:02:56]} 3. Bb5 {[%clk 0:03:01]}  Nf6 {[%clk 0:02:56]} 4. O-O {[%clk 0:02:56]}  Nxe4 {[%clk 0:02:56]} 5. Re1 {[%clk 0:02:57]}  Nd6 {[%clk 0:02:54]} 6. Nxe5 {[%clk 0:02:57]}  Nxe5 {[%clk 0:02:53]} 7. Rxe5+ {[%clk 0:02:58]}  Be7 {[%clk 0:02:54]} 8. Bf1 {[%clk 0:02:59]}  O-O {[%clk 0:02:54]} 9. d4 {[%clk 0:03:00]}  Bf6 {[%clk 0:02:54]} 10. Bd3 {[%clk 0:02:58]}  g6 {[%clk 0:02:52]} 11. Bh6 {[%clk 0:02:46]}  Re8 {[%clk 0:02:52]} 12. f4 {[%clk 0:02:35]}  Re7 {[%clk 0:02:30]} 13. Nd2 {[%clk 0:02:23]}  Ne8 {[%clk 0:02:26]} 14. Ne4 {[%clk 0:01:39]}  Bxe5 {[%clk 0:02:24]} 15. dxe5 {[%clk 0:01:25]}  d5 {[%clk 0:02:24]} 16. exd6 {[%clk 0:00:43]}  Rxe4 {[%clk 0:01:56]} 17. Bxe4 {[%clk 0:00:41]}  Qxd6 {[%clk 0:01:57]} 18. Qxd6 {[%clk 0:00:29]}  Nxd6 {[%clk 0:01:58]} 19. Bf3 {[%clk 0:00:26]}  Bf5 {[%clk 0:01:53]} 20. c3 {[%clk 0:00:26]}  Re8 {[%clk 0:01:47]} 21. Bg5 {[%clk 0:00:26]}  Kg7 {[%clk 0:01:45]} 22. Bh4 {[%clk 0:00:24]}  Be4 {[%clk 0:01:44]} 23. Bg4 {[%clk 0:00:21]}  Bc6 {[%clk 0:01:37]} 24. Bf2 {[%clk 0:00:20]}  f5 {[%clk 0:01:31]} 25. Bd1 {[%clk 0:00:21]}  Ne4 {[%clk 0:00:51]} 26. Bd4+ {[%clk 0:00:20]}  Kh6 {[%clk 0:00:51]} 27. Bf3 {[%clk 0:00:20]}  Bb5 {[%clk 0:00:44]} 28. Re1 {[%clk 0:00:20]}  b6 {[%clk 0:00:38]} 29. Be5 {[%clk 0:00:16]}  Nd6 {[%clk 0:00:32]} 30. b3 {[%clk 0:00:14]}  Nf7 {[%clk 0:00:29]} 31. c4 {[%clk 0:00:14]}  Bd7 {[%clk 0:00:29]} 32. Bc3 {[%clk 0:00:13]}  Rxe1+ {[%clk 0:00:28]} 33. Bxe1 {[%clk 0:00:13]}  g5 {[%clk 0:00:28]} 34. fxg5+ {[%clk 0:00:11]}  Nxg5 {[%clk 0:00:28]} 35. Bd2 {[%clk 0:00:12]}  Kg6 {[%clk 0:00:29]} 36. Be2 {[%clk 0:00:02]}  Ne4 {[%clk 0:00:29]} 37. Be1 {[%clk 0:00:03]}  f4 {[%clk 0:00:20]} 38. g3 {[%clk 0:00:03]}  fxg3 {[%clk 0:00:20]} 39. hxg3 {[%clk 0:00:03]}  Bc6 {[%clk 0:00:20]} 40. Bd3 {[%clk 0:00:03]}  Kg5 {[%clk 0:00:20]} 41. Bc2 {[%clk 0:00:01]}  Kg4 {[%clk 0:00:19]} 42. Bd1+ {[%clk 0:00:02]}  Kg5 {[%clk 0:00:19]} 43. Bf3 {[%clk 0:00:03]}  Bb7 {[%clk 0:00:18]} 44. Kg2 {[%clk 0:00:03]}  Nd6 {[%clk 0:00:17]} 45. Bxb7 {[%clk 0:00:03]}  Nxb7 {[%clk 0:00:18]} 46. Kf3 {[%clk 0:00:04]}  Kf5 {[%clk 0:00:19]} 47. g4+ {[%clk 0:00:04]}  Kg5 {[%clk 0:00:19]} 48. Bd2+ {[%clk 0:00:05]}  Kh4 {[%clk 0:00:19]} 49. Kf4 {[%clk 0:00:04]}  Nc5 {[%clk 0:00:19]} 50. Be1+ {[%clk 0:00:03]}  Kh3 {[%clk 0:00:18]} 51. Kf5 {[%clk 0:00:03]}  Nd3 {[%clk 0:00:17]} 52. Bd2 {[%clk 0:00:04]}  Nf2 {[%clk 0:00:11]} 53. g5 {[%clk 0:00:04]}  Kh4 {[%clk 0:00:11]} 54. Be1 {[%clk 0:00:03]}  Kg3 {[%clk 0:00:11]} 55. Kf6 {[%clk 0:00:03]}  Kf3 {[%clk 0:00:08]} 56. Bxf2 {[%clk 0:00:04]}  Kxf2 {[%clk 0:00:09]} 57. Kg7 {[%clk 0:00:04]}  Kf3 {[%clk 0:00:10]} 58. Kxh7 {[%clk 0:00:04]}  Ke4 {[%clk 0:00:09]} 59. g6 {[%clk 0:00:05]}  Kd3 {[%clk 0:00:09]} 60. g7 {[%clk 0:00:06]}  Kc3 {[%clk 0:00:10]} 61. g8=Q {[%clk 0:00:07]}  Kb2 {[%clk 0:00:11]} 62. Qf7 {[%clk 0:00:07]}  a5 {[%clk 0:00:12]} 63. Qxc7 {[%clk 0:00:07]} 1-0


[Site "https://www.chess.com"]

[Event "Titled Tuesday Blitz December 13 Late 2022"]
[White "Abasov, Nijat"]
[Black "Postnikov, Daniil"]
[WhiteFideId "13402960"]
[BlackFideId "4166329"]
[WhiteElo "2546"]
[BlackElo "2261"]
[Result "1-0"]
[Round "03"]
[TimeControl "180+1"]
[Date "2022.12.13"]
[WhiteClock "0:00:44"]
[BlackClock "0:00:13"]

1. Nf3 {[%clk 0:03:00]}  f5 {[%clk 0:02:59]} 2. d3 {[%clk 0:03:00]}  Nf6 {[%clk 0:02:59]} 3. e4 {[%clk 0:03:01]}  d6 {[%clk 0:03:00]} 4. Nc3 {[%clk 0:03:01]}  Nc6 {[%clk 0:02:55]} 5. Bg5 {[%clk 0:02:51]}  e5 {[%clk 0:02:30]} 6. d4 {[%clk 0:02:50]}  fxe4 {[%clk 0:02:18]} 7. dxe5 {[%clk 0:02:34]}  exf3 {[%clk 0:02:15]} 8. exf6 {[%clk 0:02:34]}  gxf6 {[%clk 0:02:10]} 9. Be3 {[%clk 0:02:30]}  Bg4 {[%clk 0:02:03]} 10. gxf3 {[%clk 0:02:28]}  Bh5 {[%clk 0:02:02]} 11. Nd5 {[%clk 0:01:44]}  Ne5 {[%clk 0:01:50]} 12. Be2 {[%clk 0:01:43]}  c6 {[%clk 0:01:50]} 13. f4 {[%clk 0:01:40]}  Bxe2 {[%clk 0:01:38]} 14. Qxe2 {[%clk 0:01:41]}  cxd5 {[%clk 0:01:33]} 15. fxe5 {[%clk 0:01:41]}  dxe5 {[%clk 0:01:33]} 16. O-O-O {[%clk 0:01:41]}  Qd7 {[%clk 0:01:26]} 17. Rd3 {[%clk 0:01:32]}  O-O-O {[%clk 0:01:09]} 18. Bxa7 {[%clk 0:01:27]}  d4 {[%clk 0:01:01]} 19. Rhd1 {[%clk 0:01:21]}  Qa4 {[%clk 0:00:57]} 20. Qg4+ {[%clk 0:01:13]}  Kc7 {[%clk 0:00:55]} 21. Rc3+ {[%clk 0:01:06]}  Kd6 {[%clk 0:00:24]} 22. Bxd4 {[%clk 0:01:04]}  Qxa2 {[%clk 0:00:18]} 23. Bxe5+ {[%clk 0:00:42]}  Ke7 {[%clk 0:00:15]} 24. Rc7+ {[%clk 0:00:43]}  Ke8 {[%clk 0:00:14]} 25. Qh5+ {[%clk 0:00:43]}  Qf7 {[%clk 0:00:13]} 26. Qxf7# {[%clk 0:00:44]} 1-0


[Site "https://www.chess.com"]

[Event "Titled Tuesday Blitz December 13 Late 2022"]
[White "Adury, Anant"]
[Black "Kuzmicz, Krystian"]
[WhiteFideId "30964687"]
[BlackFideId "1119125"]
[WhiteElo "2174"]
[BlackElo "2704"]
[Result "0-1"]
[Round "03"]
[TimeControl "180+1"]
[Date "2022.12.14"]
[WhiteClock "0:01:13"]
[BlackClock "0:02:42"]

1. c4 {[%clk 0:03:00]}  g6 {[%clk 0:02:59]} 2. Nf3 {[%clk 0:02:58]}  Bg7 {[%clk 0:03:00]} 3. Nc3 {[%clk 0:02:59]}  c5 {[%clk 0:02:59]} 4. e3 {[%clk 0:02:58]}  Nf6 {[%clk 0:02:59]} 5. d4 {[%clk 0:02:58]}  O-O {[%clk 0:02:57]} 6. Be2 {[%clk 0:02:55]}  cxd4 {[%clk 0:02:57]} 7. Nxd4 {[%clk 0:02:54]}  Nc6 {[%clk 0:02:55]} 8. O-O {[%clk 0:02:51]}  d5 {[%clk 0:02:55]} 9. cxd5 {[%clk 0:02:50]}  Nxd5 {[%clk 0:02:55]} 10. Nxc6 {[%clk 0:02:48]}  bxc6 {[%clk 0:02:55]} 11. Bd2 {[%clk 0:02:41]}  Rb8 {[%clk 0:02:52]} 12. Qc1 {[%clk 0:02:40]}  Nb4 {[%clk 0:02:49]} 13. a3 {[%clk 0:02:38]}  Nd3 {[%clk 0:02:49]} 14. Bxd3 {[%clk 0:02:39]}  Qxd3 {[%clk 0:02:50]} 15. Rd1 {[%clk 0:02:39]}  Bg4 {[%clk 0:02:49]} 16. f3 {[%clk 0:02:37]}  Be6 {[%clk 0:02:49]} 17. Be1 {[%clk 0:02:35]}  Qc4 {[%clk 0:02:48]} 18. Bf2 {[%clk 0:01:28]}  Rb3 {[%clk 0:02:45]} 19. Ne2 {[%clk 0:01:13]}  Qxe2 {[%clk 0:02:42]} 0-1


[Site "https://www.chess.com"]

[Event "Titled Tuesday Blitz December 13 Late 2022"]
[White "Aggelis, Nikolaos"]
[Black "Pichot, Alan"]
[WhiteFideId "4213220"]
[BlackFideId "110973"]
[WhiteElo "2487"]
[BlackElo "2869"]
[Result "0-1"]
[Round "03"]
[TimeControl "180+1"]
[Date "2022.12.14"]
[WhiteClock "0:00:14"]
[BlackClock "0:01:30"]

1. c4 {[%clk 0:03:00]}  c5 {[%clk 0:02:56]} 2. Nf3 {[%clk 0:02:57]}  Nc6 {[%clk 0:02:55]} 3. b3 {[%clk 0:02:51]}  e5 {[%clk 0:02:54]} 4. d3 {[%clk 0:02:41]}  g6 {[%clk 0:02:53]} 5. Ba3 {[%clk 0:02:37]}  Bg7 {[%clk 0:02:49]} 6. Nc3 {[%clk 0:02:26]}  Qa5 {[%clk 0:02:48]} 7. Bb2 {[%clk 0:02:22]}  e4 {[%clk 0:02:48]} 8. Qd2 {[%clk 0:01:59]}  exf3 {[%clk 0:02:47]} 9. gxf3 {[%clk 0:01:59]}  Nge7 {[%clk 0:02:46]} 10. h4 {[%clk 0:01:53]}  h5 {[%clk 0:02:38]} 11. Bh3 {[%clk 0:01:46]}  d5 {[%clk 0:02:37]} 12. Bxc8 {[%clk 0:01:43]}  Rxc8 {[%clk 0:02:36]} 13. Rc1 {[%clk 0:01:28]}  O-O {[%clk 0:02:16]} 14. Ba1 {[%clk 0:01:20]}  d4 {[%clk 0:02:12]} 15. Ne4 {[%clk 0:01:17]}  Qxd2+ {[%clk 0:02:12]} 16. Kxd2 {[%clk 0:01:18]}  Bh6+ {[%clk 0:02:12]} 17. e3 {[%clk 0:01:14]}  Nf5 {[%clk 0:02:12]} 18. Rce1 {[%clk 0:01:09]}  Rfd8 {[%clk 0:02:08]} 19. f4 {[%clk 0:01:04]}  dxe3+ {[%clk 0:01:54]} 20. fxe3 {[%clk 0:01:05]}  Nb4 {[%clk 0:01:55]} 21. Nf6+ {[%clk 0:01:01]}  Kf8 {[%clk 0:01:53]} 22. Nh7+ {[%clk 0:01:01]}  Ke8 {[%clk 0:01:52]} 23. Nf6+ {[%clk 0:01:01]}  Ke7 {[%clk 0:01:52]} 24. a3 {[%clk 0:00:50]}  Rxd3+ {[%clk 0:01:48]} 25. Kc1 {[%clk 0:00:46]}  Nc6 {[%clk 0:01:42]} 26. Nd5+ {[%clk 0:00:42]}  Kd6 {[%clk 0:01:38]} 27. Kc2 {[%clk 0:00:39]}  Rxd5 {[%clk 0:01:31]} 28. cxd5 {[%clk 0:00:40]}  Nce7 {[%clk 0:01:32]} 29. Be5+ {[%clk 0:00:29]}  Kd7 {[%clk 0:01:32]} 30. e4 {[%clk 0:00:24]}  Nd4+ {[%clk 0:01:32]} 31. Kc3 {[%clk 0:00:18]}  f5 {[%clk 0:01:31]} 32. Bxd4 {[%clk 0:00:17]}  cxd4+ {[%clk 0:01:31]} 33. Kxd4 {[%clk 0:00:18]}  fxe4 {[%clk 0:01:31]} 34. Rxe4 {[%clk 0:00:19]}  Nf5+ {[%clk 0:01:29]} 35. Kd3 {[%clk 0:00:18]}  Ng3 {[%clk 0:01:30]} 36. Rhe1 {[%clk 0:00:17]}  Nxe4 {[%clk 0:01:30]} 37. Rxe4 {[%clk 0:00:18]}  Re8 {[%clk 0:01:29]} 38. Rxe8 {[%clk 0:00:15]}  Kxe8 {[%clk 0:01:29]} 39. Ke4 {[%clk 0:00:16]}  Ke7 {[%clk 0:01:29]} 40. f5 {[%clk 0:00:16]}  g5 {[%clk 0:01:29]} 41. hxg5 {[%clk 0:00:14]}  Bxg5 {[%clk 0:01:30]} 42. b4 {[%clk 0:00:14]}  Bf6 {[%clk 0:01:30]} 0-1


[Site "https://www.chess.com"]

[Event "Titled Tuesday Blitz December 13 Late 2022"]
[White "Albertini, Luca"]
[Black "Martinez Ramirez, Lennis"]
[WhiteFideId "847038"]
[BlackFideId "3509079"]
[WhiteElo "2207"]
[BlackElo "2439"]
[Result "0-1"]
[Round "03"]
[TimeControl "180+1"]
[Date "2022.12.14"]
[WhiteClock "0:00:01"]
[BlackClock "0:00:36"]

1. d4 {[%clk 0:03:00]}  d5 {[%clk 0:02:59]} 2. c4 {[%clk 0:03:00]}  e6 {[%clk 0:02:59]} 3. Nc3 {[%clk 0:02:59]}  Nf6 {[%clk 0:02:59]} 4. cxd5 {[%clk 0:02:57]}  exd5 {[%clk 0:03:00]} 5. Bg5 {[%clk 0:02:57]}  c6 {[%clk 0:03:01]} 6. e3 {[%clk 0:02:58]}  h6 {[%clk 0:03:00]} 7. Bh4 {[%clk 0:02:57]}  Be7 {[%clk 0:03:00]} 8. Nf3 {[%clk 0:02:57]}  O-O {[%clk 0:03:01]} 9. Be2 {[%clk 0:02:53]}  Bf5 {[%clk 0:03:00]} 10. O-O {[%clk 0:02:52]}  Nbd7 {[%clk 0:02:58]} 11. a3 {[%clk 0:02:48]}  a5 {[%clk 0:02:58]} 12. Bg3 {[%clk 0:02:39]}  Nh5 {[%clk 0:02:53]} 13. Rc1 {[%clk 0:02:26]}  Nxg3 {[%clk 0:02:52]} 14. hxg3 {[%clk 0:02:27]}  Re8 {[%clk 0:02:46]} 15. Bd3 {[%clk 0:02:20]}  Bg4 {[%clk 0:02:44]} 16. Be2 {[%clk 0:02:20]}  Bd6 {[%clk 0:02:42]} 17. Nh2 {[%clk 0:02:17]}  Be6 {[%clk 0:02:40]} 18. Bg4 {[%clk 0:02:16]}  f5 {[%clk 0:02:39]} 19. Bh5 {[%clk 0:02:13]}  Re7 {[%clk 0:02:39]} 20. Ne2 {[%clk 0:02:06]}  g5 {[%clk 0:02:36]} 21. g4 {[%clk 0:02:00]}  Bxh2+ {[%clk 0:02:11]} 22. Kxh2 {[%clk 0:01:58]}  fxg4 {[%clk 0:02:12]} 23. Ng3 {[%clk 0:01:55]}  Nf6 {[%clk 0:02:09]} 24. Qc2 {[%clk 0:01:47]}  Nxh5 {[%clk 0:01:59]} 25. Nxh5 {[%clk 0:01:43]}  Qd6+ {[%clk 0:01:58]} 26. Kg1 {[%clk 0:01:35]}  Bf7 {[%clk 0:01:56]} 27. Ng3 {[%clk 0:01:32]}  Bg6 {[%clk 0:01:56]} 28. Qc5 {[%clk 0:01:31]}  Qxc5 {[%clk 0:01:56]} 29. Rxc5 {[%clk 0:01:32]}  a4 {[%clk 0:01:56]} 30. Rfc1 {[%clk 0:01:31]}  h5 {[%clk 0:01:49]} 31. Ne2 {[%clk 0:01:23]}  h4 {[%clk 0:01:46]} 32. Nc3 {[%clk 0:01:22]}  Kf7 {[%clk 0:01:40]} 33. Na2 {[%clk 0:01:22]}  Ke6 {[%clk 0:01:39]} 34. Nb4 {[%clk 0:01:21]}  Be4 {[%clk 0:01:34]} 35. Kh2 {[%clk 0:01:16]}  Rf7 {[%clk 0:01:32]} 36. Kg1 {[%clk 0:01:15]}  Raf8 {[%clk 0:01:31]} 37. Rf1 {[%clk 0:01:12]}  g3 {[%clk 0:01:12]} 38. f3 {[%clk 0:01:09]}  g4 {[%clk 0:01:12]} 39. f4 {[%clk 0:01:04]}  h3 {[%clk 0:01:12]} 40. Rc2 {[%clk 0:00:45]}  Bxc2 {[%clk 0:01:00]} 41. Nxc2 {[%clk 0:00:46]}  Kf5 {[%clk 0:01:00]} 42. Re1 {[%clk 0:00:19]}  Re7 {[%clk 0:01:00]} 43. Re2 {[%clk 0:00:19]}  Rfe8 {[%clk 0:00:59]} 44. Re1 {[%clk 0:00:15]}  Re4 {[%clk 0:01:00]} 45. Kh1 {[%clk 0:00:13]}  b6 {[%clk 0:00:50]} 46. Kg1 {[%clk 0:00:13]}  c5 {[%clk 0:00:50]} 47. Rd1 {[%clk 0:00:10]}  Rxe3 {[%clk 0:00:36]} 48. Nxe3+ {[%clk 0:00:06]}  Rxe3 {[%clk 0:00:36]} 49. dxc5 {[%clk 0:00:07]}  bxc5 {[%clk 0:00:37]} 50. Rxd5+ {[%clk 0:00:07]}  Kxf4 {[%clk 0:00:37]} 51. Rd1 {[%clk 0:00:06]}  Re2 {[%clk 0:00:37]} 52. Rf1+ {[%clk 0:00:05]}  Ke4 {[%clk 0:00:37]} 53. Rc1 {[%clk 0:00:02]}  Rxg2+ {[%clk 0:00:36]} 54. Kh1 {[%clk 0:00:02]}  Rxb2 {[%clk 0:00:37]} 55. Re1+ {[%clk 0:00:01]}  Kf3 {[%clk 0:00:36]} 56. Rf1+ {[%clk 0:00:01]}  Rf2 {[%clk 0:00:36]} 0-1


[Site "https://www.chess.com"]